bitfinex/quotes_BTCUSD_20251016
["timestamp","ask_amount","ask_price","bid_price","bid_amount"]
[1760591328724,0.00181155,111210.0,111200.0,0.77768239]
[1760591329591,0.00181155,111210.0,111200.0,0.66476239]
[1760591329810,0.00181155,111210.0,111200.0,0.77768239]
[1760591330022,0.00181155,111210.0,111200.0,0.77868239]
[1760591330455,0.00181155,111210.0,111200.0,1.53966136]
[1760591330679,0.00181155,111210.0,111200.0,1.53970136]
[1760591330885,0.00181155,111210.0,111200.0,1.56672779]
[1760591332370,0.00181155,111210.0,111200.0,1.45376779]
[1760591332788,0.00181155,111210.0,111200.0,1.95148448]
[1760591332789,1e-08,111210.0,111200.0,1.95148448]
[1760591333007,1e-08,111210.0,111200.0,1.45376779]
[1760591333682,1e-08,111210.0,111200.0,1.56676779]
[1760591334767,1e-08,111210.0,111200.0,1.45376779]
[1760591334987,1e-08,111210.0,111200.0,1.56676779]
[1760591335484,1e-08,111210.0,111200.0,1.45376779]
[1760591335696,1e-08,111210.0,111200.0,1.56676779]
[1760591336329,1e-08,111210.0,111200.0,1.56576779]
[1760591336558,1e-08,111210.0,111200.0,1.56676779]
[1760591337599,1e-08,111210.0,111200.0,1.56876779]
[1760591337813,1e-08,111210.0,111200.0,1.45576779]
[1760591338018,1e-08,111210.0,111200.0,1.56876779]
[1760591339297,1e-08,111210.0,111200.0,1.45576779]
[1760591339704,1e-08,111210.0,111200.0,1.56876779]
[1760591340448,0.17979246,111240.0,111230.0,0.38479669]
[1760591340732,0.1798076,111230.0,111220.0,0.38479669]
[1760591340944,0.1798076,111230.0,111220.0,0.08969012]
[1760591341175,0.1798076,111230.0,111220.0,0.22071249]
[1760591341408,0.1798076,111230.0,111220.0,0.08969012]
[1760591341608,0.1798076,111230.0,111220.0,0.22071249]
[1760591341839,0.1798076,111230.0,111220.0,0.20273012]
[1760591342062,0.1798076,111230.0,111220.0,0.08969012]
[1760591342280,0.1798076,111230.0,111220.0,0.20269012]
[1760591342701,0.1798076,111230.0,111220.0,0.08969012]
[1760591343151,0.1798076,111230.0,111220.0,0.20269012]
[1760591343770,0.1798076,111230.0,111210.0,0.054]
[1760591343771,0.17982377,111220.0,111210.0,0.054]
[1760591343984,0.17982377,111220.0,111210.0,0.14369012]
[1760591344212,0.17982377,111220.0,111210.0,0.25669012]
[1760591344416,0.17982377,111220.0,111210.0,0.08969012]
[1760591344839,0.17982377,111220.0,111200.0,0.054]
[1760591344840,0.17983994,111210.0,111200.0,0.054]
[1760591345046,0.17983994,111210.0,111200.0,0.14369012]
[1760591345214,0.17983994,111210.0,111200.0,0.25669012]
[1760591346028,0.17983994,111210.0,111200.0,0.14369012]
[1760591346228,0.17983994,111210.0,111200.0,0.25669012]
[1760591346790,0.17983994,111210.0,111200.0,0.70834292]
[1760591347091,0.18041084,111220.0,111200.0,0.70834292]
[1760591347275,0.18041084,111220.0,111210.0,0.56463663]
[1760591347514,0.18041084,111220.0,111210.0,0.58748681]
[1760591348138,0.18041084,111220.0,111210.0,0.20269012]
[1760591348282,0.18041084,111220.0,111210.0,0.58748681]
[1760591349298,0.15628462,111230.0,111210.0,0.58748681]
[1760591349568,0.17982377,111220.0,111210.0,0.20269012]
[1760591350697,0.17982377,111220.0,111210.0,0.20369012]
[1760591353014,0.17982377,111220.0,111210.0,0.001]
[1760591353227,0.17982377,111220.0,111210.0,0.114]
[1760591353646,0.17982377,111220.0,111210.0,0.113]
[1760591354059,0.17986288,111200.0,111190.0,0.054]
[1760591354264,0.17986288,111200.0,111190.0,0.25674004]
[1760591354883,0.17986288,111200.0,111190.0,0.08974004]
[1760591355087,0.17986288,111200.0,111190.0,0.20274004]
[1760591355910,0.17986288,111200.0,111190.0,0.20374004]
[1760591356943,0.17986288,111200.0,111190.0,0.20274004]
[1760591358399,0.17986288,111200.0,111190.0,0.08974004]
[1760591358608,0.17986288,111200.0,111190.0,0.22072726]
[1760591358813,0.17986288,111200.0,111190.0,0.20274004]
[1760591360080,0.17986288,111200.0,111190.0,0.08974004]
[1760591360284,0.17986288,111200.0,111190.0,0.22072726]
[1760591360490,0.17986288,111200.0,111190.0,0.20274004]
[1760591360726,0.17986288,111200.0,111190.0,0.08974004]
[1760591360940,0.17986288,111200.0,111190.0,0.22072726]
[1760591361150,0.17986288,111200.0,111190.0,0.20274004]
[1760591361363,0.17986288,111200.0,111190.0,0.08974004]
[1760591361582,0.17986288,111200.0,111190.0,0.10772726]
[1760591361795,0.17986288,111200.0,111190.0,0.22072726]
[1760591361971,0.17986288,111200.0,111190.0,0.20274004]
[1760591362725,0.17986288,111200.0,111190.0,0.38261233]
[1760591363659,0.18884776,111210.0,111190.0,0.38261233]
[1760591363876,0.18884776,111210.0,111190.0,0.941151]
[1760591363877,0.17984077,111210.0,111190.0,0.941151]
[1760591364086,0.17983994,111210.0,111200.0,0.95907051]
[1760591364298,0.17983994,111210.0,111200.0,1.0540849]
[1760591364505,0.17983994,111210.0,111200.0,0.9410849]
[1760591364710,0.17983994,111210.0,111200.0,1.0540849]
[1760591364921,0.18881495,111220.0,111200.0,1.0540849]
[1760591365130,0.17983994,111210.0,111200.0,1.0540849]
[1760591365345,0.17983994,111210.0,111200.0,0.38254623]
[1760591365939,0.18881495,111220.0,111200.0,0.38254623]
[1760591366150,0.18881495,111220.0,111200.0,0.9410849]
[1760591366364,0.17983994,111210.0,111200.0,0.9410849]
[1760591366574,0.17983994,111210.0,111200.0,1.0550849]
[1760591366853,0.17983994,111210.0,111200.0,0.9420849]
[1760591367082,0.17983994,111210.0,111200.0,1.0550849]
[1760591367493,0.17983994,111210.0,111200.0,1.0540849]
[1760591369253,0.17983994,111210.0,111200.0,1.1080849]
[1760591370505,0.17983994,111210.0,111200.0,1.1090849]
[1760591371324,0.18881495,111220.0,111200.0,1.1090849]
[1760591371527,0.18881495,111220.0,111210.0,0.38462545]
[1760591372533,0.17982377,111220.0,111210.0,1.03878096]
[1760591372730,0.17982377,111220.0,111210.0,0.65415551]
[1760591373106,0.17982377,111220.0,111210.0,0.47431557]
[1760591374401,0.17982377,111220.0,111210.0,0.20269012]
[1760591374705,0.17982377,111220.0,111210.0,0.08969012]
[1760591374922,0.17983994,111210.0,111200.0,0.43862545]
[1760591375138,0.17983994,111210.0,111200.0,0.82117168]
[1760591375514,0.17983994,111210.0,111200.0,0.14369012]
[1760591375712,0.17983994,111210.0,111200.0,0.64135557]
[1760591375939,0.17983994,111210.0,111200.0,0.52831557]
[1760591376070,0.17983994,111210.0,111200.0,0.64235557]
[1760591376724,0.17983994,111210.0,111200.0,0.09069012]
[1760591377096,0.17983994,111210.0,111200.0,0.20369012]
[1760591378476,0.17983994,111210.0,111200.0,0.08969012]
[1760591378680,0.17983994,111210.0,111200.0,0.20269012]
[1760591379287,0.17983994,111210.0,111200.0,0.08969012]
[1760591379509,0.17983994,111210.0,111200.0,0.20269012]
[1760591379727,0.17983994,111210.0,111200.0,0.58731557]
[1760591379983,0.17983994,111210.0,111200.0,0.20269012]
[1760591380118,0.17983994,111210.0,111200.0,0.08969012]
[1760591380323,0.17983994,111210.0,111200.0,0.20269012]
[1760591381959,0.17983994,111210.0,111200.0,0.58731557]
[1760591382182,0.17983994,111210.0,111200.0,0.47431557]
[1760591382556,0.17983994,111210.0,111200.0,0.85894102]
[1760591382988,0.17983994,111210.0,111200.0,0.97194102]
[1760591384651,0.17983994,111210.0,111200.0,0.58731557]
[1760591384860,0.17983994,111210.0,111200.0,0.47431557]
[1760591385070,0.17983994,111210.0,111200.0,0.58731557]
[1760591385270,0.17983994,111210.0,111200.0,0.20269012]
[1760591385468,0.17983994,111210.0,111200.0,0.58731557]
[1760591388127,0.17983994,111210.0,111200.0,0.47431557]
[1760591388507,0.17983994,111210.0,111200.0,0.58731557]
[1760591389253,0.17982377,111220.0,111200.0,1.15179713]
[1760591389451,0.17982377,111220.0,111210.0,0.38462545]
[1760591390280,0.17983994,111210.0,111200.0,0.76717168]
[1760591390453,0.17983994,111210.0,111200.0,1.15179713]
[1760591390657,0.17983994,111210.0,111200.0,0.97194102]
[1760591391090,0.17983994,111210.0,111200.0,1.20579713]
[1760591393154,0.17982377,111220.0,111200.0,1.20579713]
[1760591393372,0.17982377,111220.0,111210.0,0.38462545]
[1760591394088,0.17983994,111210.0,111200.0,0.43654623]
[1760591394291,0.17983994,111210.0,111200.0,1.20579713]
[1760591395320,0.17983994,111210.0,111200.0,1.20679713]
[1760591395923,0.17982377,111220.0,111200.0,1.20679713]
[1760591396261,0.17982377,111220.0,111210.0,0.49229956]
[1760591396500,0.17982377,111220.0,111210.0,0.47431557]
[1760591396721,0.17982377,111220.0,111210.0,0.65415551]
[1760591398686,0.17982377,111220.0,111210.0,0.47431557]
[1760591402895,0.17982377,111220.0,111210.0,0.08969012]
[1760591403102,0.17982377,111220.0,111210.0,0.49229956]
[1760591403312,0.17982377,111220.0,111210.0,0.47431557]
[1760591405395,0.17982377,111220.0,111210.0,0.08969012]
[1760591405585,0.56444922,111220.0,111210.0,0.20265012]
[1760591405782,0.18626475,111220.0,111210.0,0.20265012]
[1760591405996,0.17982377,111220.0,111210.0,0.58727557]
[1760591408968,0.17982377,111220.0,111210.0,0.20265012]
[1760591409636,0.17982377,111220.0,111210.0,0.11296]
[1760591409825,0.17985611,111200.0,111190.0,0.43867537]
[1760591410029,0.17985611,111200.0,111190.0,0.52836549]
[1760591410831,0.17985611,111200.0,111190.0,0.82119778]
[1760591411016,0.17985611,111200.0,111190.0,0.82219778]
[1760591411686,0.17985611,111200.0,111190.0,0.70923778]
[1760591411883,0.17985611,111200.0,111190.0,0.82219778]
[1760591412120,0.17985611,111200.0,111190.0,0.64232549]
[1760591416121,0.17985611,111200.0,111190.0,0.82219778]
[1760591418832,0.17985611,111200.0,111190.0,0.64232549]
[1760591419271,0.17985611,111200.0,111190.0,0.64228549]
[1760591421860,0.17985611,111200.0,111190.0,0.58828549]
[1760591424770,0.17985611,111200.0,111190.0,0.20366004]
[1760591424992,0.17985611,111200.0,111190.0,0.58828549]
[1760591425327,0.17985611,111200.0,111190.0,0.20366004]
[1760591425658,0.17985611,111200.0,111190.0,0.49859537]
[1760591426674,0.17985611,111200.0,111190.0,0.49759537]
[1760591428618,0.42355275,111210.0,111190.0,0.49759537]
[1760591428827,0.17985611,111200.0,111190.0,0.49759537]
[1760591429192,0.08355275,111210.0,111190.0,0.76715778]
[1760591429391,0.08355275,111210.0,111200.0,0.94910701]
[1760591429605,0.17983994,111210.0,111200.0,1.03879713]
[1760591429982,0.18881495,111220.0,111200.0,1.03879713]
[1760591430183,0.18881495,111220.0,111210.0,0.49754545]
[1760591430798,0.18881495,111220.0,111210.0,0.11292]
[1760591431004,0.17983994,111210.0,111200.0,0.08969012]
[1760591431204,0.17983994,111210.0,111200.0,0.58723557]
[1760591433117,0.17983994,111210.0,111200.0,0.20261012]
[1760591433340,0.17983994,111210.0,111200.0,0.20361012]
[1760591434175,0.17983994,111210.0,111200.0,0.20261012]
[1760591436084,0.17983994,111210.0,111200.0,0.38246623]
[1760591436298,0.17983994,111210.0,111200.0,0.43646623]
[1760591436506,0.17983994,111210.0,111200.0,0.82119937]
[1760591439108,0.17983994,111210.0,111200.0,0.25661012]
[1760591439312,0.17983994,111210.0,111200.0,0.64134326]
[1760591440479,0.17983994,111210.0,111200.0,0.82119937]
[1760591443682,0.18881495,111220.0,111210.0,0.17983994]
[1760591443903,0.18881495,111220.0,111210.0,0.6542632]
[1760591444339,0.18881495,111220.0,111210.0,0.08969012]
[1760591444561,0.18881495,111220.0,111210.0,0.10767411]
[1760591445672,0.00899118,111220.0,111210.0,0.28751405]
[1760591445899,0.18881495,111220.0,111210.0,0.26953006]
[1760591446126,0.18881495,111220.0,111210.0,0.6542632]
[1760591447261,0.18881495,111220.0,111210.0,0.47442326]
[1760591448398,0.18881495,111220.0,111210.0,0.6542632]
[1760591452021,0.18881495,111220.0,111210.0,0.47442326]
[1760591453038,0.18881495,111220.0,111210.0,0.6542632]
[1760591453403,0.18881495,111220.0,111210.0,0.26953006]
[1760591453753,0.18881495,111220.0,111210.0,0.08969012]
[1760591454503,0.18881495,111220.0,111210.0,0.10767411]
[1760591455129,0.18881495,111220.0,111210.0,0.28751405]
[1760591455327,0.18881495,111220.0,111210.0,0.32353006]
[1760591456633,0.18881495,111220.0,111210.0,0.14369012]
[1760591456911,0.18881495,111220.0,111210.0,0.16167411]
[1760591462053,0.17985101,111210.0,111190.0,0.18891582]
[1760591462260,0.17985101,111210.0,111200.0,0.16692]
[1760591462467,0.17985101,111210.0,111200.0,0.25661012]
[1760591462883,0.17985101,111210.0,111200.0,0.14369012]
[1760591463084,0.17985101,111210.0,111200.0,0.45445184]
[1760591463294,0.17985101,111210.0,111200.0,0.43646623]
[1760591463916,0.17983994,111210.0,111200.0,0.43646623]
[1760591464982,0.17983994,111210.0,111200.0,0.43746623]
[1760591465958,0.18881495,111220.0,111200.0,0.43746623]
[1760591466157,0.17983994,111210.0,111200.0,0.43746623]
[1760591466908,0.17983994,111210.0,111200.0,0.43646623]
[1760591468682,0.17983994,111210.0,111200.0,0.43746623]
[1760591469905,0.18881495,111220.0,111200.0,0.43746623]
[1760591470537,0.17983994,111210.0,111200.0,0.43746623]
[1760591470751,0.18881495,111220.0,111200.0,0.43746623]
[1760591470957,0.18881495,111220.0,111200.0,0.43646623]
[1760591471160,0.17983994,111210.0,111200.0,0.43646623]
[1760591471385,0.18881495,111220.0,111200.0,0.43646623]
[1760591471586,0.17983994,111210.0,111200.0,0.43646623]
[1760591472621,0.17983994,111210.0,111200.0,0.38246623]
[1760591474374,0.17983994,111210.0,111200.0,0.38346623]
[1760591474789,0.17983994,111210.0,111200.0,0.20361012]
[1760591476421,0.17983994,111210.0,111200.0,0.38346623]
[1760591477379,0.16677127,111220.0,111200.0,0.38346623]
[1760591477519,0.17983994,111210.0,111200.0,0.38346623]
[1760591477944,0.16677127,111220.0,111200.0,0.76819937]
[1760591478140,0.17983994,111210.0,111200.0,0.76819937]
[1760591478351,0.17983994,111210.0,111200.0,0.38246623]
[1760591479250,0.17983994,111210.0,111200.0,0.25661012]
[1760591480172,0.17983994,111210.0,111200.0,0.43646623]
[1760591480741,0.17983994,111210.0,111200.0,0.43746623]
[1760591482050,0.17983994,111210.0,111200.0,0.25761012]
[1760591483035,0.17983994,111210.0,111200.0,0.43746623]
[1760591483657,0.17983994,111210.0,111200.0,0.38346623]
[1760591485483,0.17983994,111210.0,111200.0,0.76819937]
[1760591485835,0.16677127,111220.0,111200.0,0.76819937]
[1760591486298,0.17983994,111210.0,111200.0,0.76819937]
[1760591486721,0.17983994,111210.0,111200.0,0.76719937]
[1760591487467,0.16677127,111220.0,111200.0,0.76719937]
[1760591487879,0.17983994,111210.0,111200.0,0.76719937]
[1760591488583,0.17983994,111210.0,111200.0,0.76819937]
[1760591490735,0.16677127,111220.0,111200.0,0.76819937]
[1760591491120,0.17983994,111210.0,111200.0,0.76819937]
[1760591491525,0.17983994,111210.0,111200.0,0.82219937]
[1760591491726,0.17983994,111210.0,111200.0,0.82119937]
[1760591492230,0.02703532,111230.0,111210.0,0.17983994]
[1760591492429,0.17981424,111230.0,111220.0,0.69545928]
[1760591492638,0.17981424,111230.0,111220.0,0.29274377]
[1760591492877,0.17981424,111230.0,111220.0,0.67747691]
[1760591492878,0.000587,111230.0,111220.0,0.67747691]
[1760591493023,0.000587,111230.0,111220.0,0.76716703]
[1760591494018,0.000587,111230.0,111220.0,0.79419365]
[1760591494889,0.000587,111230.0,111220.0,0.79519365]
[1760591495471,0.000587,111230.0,111220.0,1.17923745]
[1760591495618,0.000587,111230.0,111220.0,1.56362592]
[1760591496016,0.000587,111230.0,111220.0,1.6008082]
[1760591496622,0.000587,111230.0,111220.0,1.9408082]
[1760591499161,0.000587,111230.0,111220.0,2.32519667]
[1760591499677,0.000587,111230.0,111220.0,3.09397361]
[1760591500087,0.0002,111260.0,111250.0,0.17977528]
[1760591500286,0.0002,111260.0,111250.0,1.15112234]
[1760591500999,0.18891378,111280.0,111260.0,0.17975912]
[1760591501000,0.14438808,111280.0,111260.0,0.17975912]
[1760591501178,0.15387405,111280.0,111270.0,0.65893288]
[1760591501401,0.15387405,111280.0,111270.0,0.64095859]
[1760591502249,0.15487405,111280.0,111270.0,0.64095859]
[1760591502495,0.15387405,111280.0,111270.0,0.64095859]
[1760591503263,0.15387405,111280.0,111270.0,0.52807859]
[1760591503474,0.15387405,111280.0,111270.0,0.64095859]
[1760591505170,0.15387405,111280.0,111270.0,0.52807859]
[1760591505828,0.15387405,111280.0,111270.0,0.64095859]
[1760591506194,0.15680759,111280.0,111270.0,0.52807859]
[1760591506397,0.15680759,111280.0,111270.0,0.64091859]
[1760591506756,0.15680759,111280.0,111270.0,0.52807859]
[1760591506958,0.15680759,111280.0,111270.0,0.14369012]
[1760591507161,0.15680759,111280.0,111270.0,0.65889288]
[1760591507364,0.15680759,111280.0,111270.0,0.52807859]
[1760591507577,0.15680759,111280.0,111270.0,0.64091859]
[1760591507991,0.15680759,111280.0,111270.0,0.52807859]
[1760591508191,0.15680759,111280.0,111270.0,0.64091859]
[1760591508393,0.15680759,111280.0,111270.0,0.52807859]
[1760591508597,0.15680759,111280.0,111270.0,0.64091859]
[1760591509640,0.15680759,111280.0,111270.0,0.52807859]
[1760591509779,0.15680759,111280.0,111270.0,0.64091859]
[1760591510637,0.15680759,111280.0,111270.0,0.52807859]
[1760591510981,0.15680759,111280.0,111270.0,0.64091859]
[1760591511193,0.15680759,111280.0,111270.0,0.52807859]
[1760591511578,0.15680759,111280.0,111270.0,0.64091859]
[1760591511783,0.15680759,111280.0,111270.0,0.52807859]
[1760591512088,0.15680759,111280.0,111270.0,0.64091859]
[1760591512315,0.1887301,111270.0,111250.0,0.05396]
[1760591512513,0.17977437,111260.0,111250.0,0.14365012]
[1760591512941,0.17977437,111260.0,111250.0,0.65885611]
[1760591513119,0.17977437,111260.0,111250.0,0.82065387]
[1760591514154,0.17977437,111260.0,111250.0,0.70781387]
[1760591514354,0.17977437,111260.0,111250.0,0.82065387]
[1760591515030,0.1887301,111270.0,111250.0,0.70781387]
[1760591515231,0.1887301,111270.0,111260.0,0.49722847]
[1760591520453,0.1887301,111270.0,111260.0,0.11284]
[1760591520894,0.19107715,111270.0,111260.0,0.11284]
[1760591521477,0.19107715,111270.0,111260.0,0.49722847]
[1760591522502,0.19107715,111270.0,111260.0,0.11284]
[1760591523204,0.57546562,111270.0,111260.0,0.11284]
[1760591523570,0.21028712,111270.0,111260.0,0.11284]
[1760591523791,0.21809958,111270.0,111260.0,0.11284]
[1760591524484,0.21028712,111270.0,111260.0,0.11284]
[1760591526166,0.17975912,111260.0,111250.0,0.14365012]
[1760591526383,0.17975912,111260.0,111250.0,0.05396]
[1760591526586,0.56414759,111260.0,111250.0,0.1668]
[1760591526740,0.58335756,111260.0,111250.0,0.1668]
[1760591526936,0.58335756,111260.0,111250.0,0.05396]
[1760591527140,1.00295732,111260.0,111250.0,0.1668]
[1760591527347,0.92335756,111260.0,111250.0,0.05396]
[1760591527541,0.92335756,111260.0,111250.0,0.1668]
[1760591527759,0.93267955,111260.0,111250.0,0.1668]
[1760591528316,0.92335756,111260.0,111250.0,0.1668]
[1760591528517,0.53896909,111260.0,111250.0,0.1668]
[1760591528718,0.92335756,111260.0,111250.0,0.1668]
[1760591529138,0.17975637,111270.0,111260.0,0.17975912]
[1760591529342,0.17974296,111270.0,111260.0,0.94853606]
[1760591529753,0.17974296,111270.0,111260.0,0.56414759]
[1760591530163,0.17974296,111270.0,111260.0,0.38438847]
[1760591530914,0.17975912,111260.0,111250.0,0.43626129]
[1760591531109,0.17975912,111260.0,111250.0,0.82065387]
[1760591531609,0.18151956,111260.0,111250.0,0.82065387]
[1760591531965,0.18151956,111260.0,111250.0,0.4362654]
[1760591532162,0.18151956,111260.0,111250.0,0.82165387]
[1760591533271,0.18151956,111260.0,111250.0,0.4372654]
[1760591533483,0.18151956,111260.0,111250.0,0.64187859]
[1760591535416,0.18151956,111260.0,111250.0,0.82165387]
[1760591536872,0.18151956,111260.0,111250.0,0.64187859]
[1760591537006,0.18151956,111260.0,111250.0,0.82165387]
[1760591537242,0.18151956,111260.0,111250.0,0.64187859]
[1760591539095,0.18151956,111260.0,111250.0,0.82165387]
[1760591542097,0.17975912,111260.0,111250.0,0.82165387]
[1760591550286,0.17975912,111260.0,111250.0,0.64187859]
[1760591550706,0.17975912,111260.0,111250.0,0.82165387]
[1760591551336,0.17975912,111260.0,111250.0,0.64187859]
[1760591551552,0.17975912,111260.0,111250.0,0.25749012]
[1760591551830,0.17975912,111260.0,111250.0,0.64187859]
[1760591553361,0.15011531,111270.0,111250.0,0.82165387]
[1760591553572,0.15011531,111270.0,111260.0,0.87644297]
[1760591553777,0.15011531,111270.0,111260.0,0.08969012]
[1760591553982,0.15011531,111270.0,111260.0,0.4920545]
[1760591554186,0.15011531,111270.0,111260.0,0.47407859]
[1760591554842,0.15011531,111270.0,111260.0,0.08969012]
[1760591555025,0.15011531,111270.0,111260.0,0.4920545]
[1760591555152,0.15011531,111270.0,111260.0,0.47407859]
[1760591555362,0.15011531,111270.0,111260.0,0.08969012]
[1760591555591,0.15011531,111270.0,111260.0,0.10766603]
[1760591556993,0.15011531,111270.0,111260.0,0.16162603]
[1760591559287,0.150702,111270.0,111260.0,0.10766603]
[1760591559487,0.150702,111270.0,111260.0,0.27446603]
[1760591559699,0.150702,111270.0,111260.0,0.25649012]
[1760591561479,0.17982086,111230.0,111220.0,0.05396]
[1760591561697,0.17982086,111230.0,111220.0,0.25649012]
[1760591562125,0.17982086,111230.0,111220.0,0.64080111]
[1760591562362,0.18880653,111240.0,111220.0,0.82062488]
[1760591562570,0.18880653,111240.0,111230.0,0.49198187]
[1760591562780,0.18880653,111240.0,111230.0,0.47400111]
[1760591563477,0.18880653,111240.0,111230.0,0.08969012]
[1760591563679,0.18880653,111240.0,111230.0,0.10767088]
[1760591564706,0.18880653,111240.0,111230.0,0.49198187]
[1760591564854,0.18880653,111240.0,111230.0,0.47400111]
[1760591566769,0.18880653,111240.0,111230.0,0.65380871]
[1760591566971,0.18880653,111240.0,111230.0,0.47400111]
[1760591569284,0.18879055,111250.0,111230.0,0.47400111]
[1760591569484,0.52894035,111250.0,111240.0,0.49715099]
[1760591570062,0.52894035,111250.0,111240.0,0.11284]
[1760591570257,0.18894035,111250.0,111240.0,0.11284]
[1760591571667,0.0001498,111250.0,111240.0,0.76663255]
[1760591572096,0.17992508,111250.0,111240.0,0.76663255]
[1760591572491,0.17992508,111250.0,111240.0,0.08969012]
[1760591572693,0.17992508,111250.0,111240.0,0.22050926]
[1760591572896,0.17992508,111250.0,111240.0,0.20253012]
[1760591573093,0.17992508,111250.0,111240.0,0.20353012]
[1760591573309,0.17992508,111250.0,111240.0,0.38332156]
[1760591573984,0.17992508,111250.0,111240.0,0.82163255]
[1760591579275,0.17992508,111250.0,111240.0,0.82663255]
[1760591582038,0.0001498,111250.0,111240.0,0.82663255]
[1760591584610,0.0001498,111250.0,111240.0,0.44232156]
[1760591584814,0.17992508,111250.0,111240.0,0.82663255]
[1760591587692,0.0001498,111250.0,111240.0,0.82663255]
[1760591590262,0.17992508,111250.0,111240.0,0.82663255]
[1760591591420,0.16805766,111260.0,111240.0,0.82663255]
[1760591591629,0.17977528,111250.0,111240.0,0.82663255]
[1760591592245,0.17977528,111250.0,111240.0,0.82563255]
[1760591592459,0.16855689,111260.0,111240.0,0.82563255]
[1760591593553,0.17977528,111250.0,111240.0,0.82563255]
[1760591594300,0.17977528,111250.0,111240.0,0.82663255]
[1760591597361,0.16855689,111260.0,111240.0,0.82663255]
[1760591598351,0.16855689,111260.0,111240.0,0.82563255]
[1760591599538,0.17977528,111250.0,111240.0,0.44132156]
[1760591599736,0.17977528,111250.0,111240.0,0.82563255]
[1760591600431,0.16855689,111260.0,111240.0,0.82563255]
[1760591600899,0.16855689,111260.0,111240.0,0.82663255]
[1760591601616,0.16855689,111260.0,111240.0,0.82563255]
[1760591602710,0.00049923,111260.0,111250.0,0.65377639]
[1760591604662,0.00049923,111260.0,111250.0,0.65477639]
[1760591606291,0.00049923,111260.0,111250.0,0.99477639]
[1760591607312,0.00049923,111260.0,111250.0,0.6104654]
[1760591607538,0.00049923,111260.0,111250.0,0.99477639]
[1760591613624,0.00049923,111260.0,111250.0,1.16157639]
[1760591616930,0.00049923,111260.0,111250.0,1.16153639]
[1760591617382,0.00049923,111260.0,111250.0,1.54564676]
[1760591621947,0.00049923,111260.0,111250.0,1.43284676]
[1760591622145,0.00049923,111260.0,111250.0,1.54564676]
[1760591622350,0.00049923,111260.0,111250.0,1.43284676]
[1760591622562,0.00049923,111260.0,111250.0,1.54564676]
[1760591622767,0.00049923,111260.0,111250.0,1.43284676]
[1760591622970,0.00049923,111260.0,111250.0,1.54564676]
[1760591623178,0.00049923,111260.0,111250.0,1.43284676]
[1760591623379,0.00049923,111260.0,111250.0,1.54564676]
[1760591624163,0.00049923,111260.0,111250.0,1.43284676]
[1760591624726,0.00049923,111260.0,111250.0,1.54564676]
[1760591624933,0.00049923,111260.0,111250.0,1.43284676]
[1760591625118,0.00049923,111260.0,111250.0,1.54564676]
[1760591626405,0.00049923,111260.0,111250.0,1.43284676]
[1760591626939,0.00049923,111260.0,111250.0,1.54564676]
[1760591627262,0.00049923,111260.0,111250.0,1.43284676]
[1760591627635,0.00049923,111260.0,111250.0,1.54564676]
[1760591627834,0.00049923,111260.0,111250.0,1.43284676]
[1760591629140,0.00049923,111260.0,111250.0,1.54564676]
[1760591631275,0.18869888,111290.0,111280.0,0.38421068]
[1760591631482,0.18884856,111290.0,111280.0,0.49701068]
[1760591631700,0.18884856,111290.0,111280.0,0.55097068]
[1760591632914,0.18984856,111290.0,111280.0,0.55097068]
[1760591636735,0.19102166,111290.0,111280.0,0.55097068]
[1760591637093,0.19002166,111290.0,111280.0,0.55097068]
[1760591637298,0.19002166,111290.0,111280.0,0.73069749]
[1760591639119,0.00132278,111290.0,111280.0,1.20459829]
[1760591640284,0.00132278,111290.0,111280.0,0.43617693]
[1760591640511,0.00132278,111290.0,111280.0,0.82038761]
[1760591640965,0.00132278,111290.0,111280.0,1.20459829]
[1760591641184,0.00132278,111290.0,111280.0,1.20559829]
[1760591641666,0.00132278,111290.0,111280.0,1.09279829]
[1760591642390,0.00132278,111290.0,111280.0,1.20559829]
[1760591642654,0.00132278,111290.0,111280.0,1.09279829]
[1760591643379,0.00132278,111290.0,111280.0,1.20559829]
[1760591644087,0.00132278,111290.0,111280.0,1.09279829]
[1760591644330,0.00132278,111290.0,111280.0,1.20559829]
[1760591644574,0.00132278,111290.0,111280.0,0.05496]
[1760591644575,0.56524412,111290.0,111280.0,0.05496]
[1760591644814,0.9115751,111290.0,111280.0,0.05496]
[1760591645024,0.02834081,111290.0,111280.0,0.55197068]
[1760591645259,0.20805147,111290.0,111280.0,1.09279829]
[1760591645467,0.18103344,111290.0,111280.0,0.70858761]
[1760591645682,0.18103344,111290.0,111280.0,1.09279829]
[1760591645916,0.18103344,111290.0,111280.0,0.82038761]
[1760591646360,0.00132278,111290.0,111280.0,1.20459829]
[1760591646618,0.18103344,111290.0,111280.0,1.09179829]
[1760591646831,0.00132278,111290.0,111280.0,1.20459829]
[1760591647688,0.18103344,111290.0,111280.0,0.5278608]
[1760591647910,0.00132278,111290.0,111280.0,1.58880897]
[1760591648361,0.00132278,111290.0,111280.0,1.2316089]
[1760591648830,0.00132278,111290.0,111280.0,1.50301958]
[1760591649057,0.00132278,111290.0,111280.0,1.50401958]
[1760591649962,0.00132278,111290.0,111280.0,1.61781958]
[1760591650195,0.00132278,111290.0,111280.0,2.37821254]
[1760591650417,0.00132278,111290.0,111280.0,2.37829254]
[1760591650634,0.00132278,111290.0,111280.0,3.1467139]
[1760591650863,0.0002,111300.0,111290.0,0.55589294]
[1760591651077,0.00033446,111300.0,111290.0,1.7982151]
[1760591651307,0.00033446,111300.0,111290.0,1.9110951]
[1760591651740,0.0002,111310.0,111300.0,1.70850883]
[1760591651952,0.0002,111310.0,111300.0,1.91107895]
[1760591652597,1e-08,111310.0,111300.0,3.06731155]
[1760591652807,1e-08,111310.0,111300.0,3.06735155]
[1760591653733,1e-08,111310.0,111300.0,3.06835155]
[1760591654141,1e-08,111310.0,111300.0,3.07035155]
[1760591654345,1e-08,111310.0,111300.0,3.06935155]
[1760591654730,1e-08,111310.0,111300.0,3.07135155]
[1760591655972,1e-08,111310.0,111300.0,2.95843155]
[1760591656189,1e-08,111310.0,111300.0,3.07135155]
[1760591656391,1e-08,111310.0,111300.0,2.95843155]
[1760591656594,1e-08,111310.0,111300.0,3.07135155]
[1760591656742,1e-08,111310.0,111300.0,3.07131155]
[1760591656944,1e-08,111310.0,111300.0,2.95843155]
[1760591657135,1e-08,111310.0,111300.0,3.07131155]
[1760591658027,1e-08,111310.0,111300.0,2.95843155]
[1760591658264,1e-08,111310.0,111300.0,3.07131155]
[1760591659243,1e-08,111310.0,111300.0,1.48357723]
[1760591659646,1e-08,111310.0,111300.0,1.09936655]
[1760591660083,1e-08,111310.0,111300.0,1.13154883]
[1760591660286,1e-08,111310.0,111300.0,0.36612747]
[1760591660500,1e-08,111310.0,111300.0,1.09736655]
[1760591661039,0.17967838,111310.0,111300.0,0.91567204]
[1760591661237,0.17967838,111310.0,111300.0,1.09636655]
[1760591661600,0.17967838,111310.0,111300.0,1.21032655]
[1760591661812,0.00117279,111310.0,111300.0,1.20932655]
[1760591662031,0.18085116,111310.0,111300.0,0.09429068]
[1760591662248,0.18085116,111310.0,111300.0,0.6418208]